[Event "*** Titled Tuesday Blitz"]
[Site "Chess.com"]
[Date "2020.04.07"]
[Round "3"]
[White "viggi38"]
[Black "youngKID"]
[Result "0-1"]
[WhiteElo "2478"]
[BlackElo "2820"]
[TimeControl "180+1"]
[EndTime "13:30:51 PDT"]
[Termination "youngKID won by resignation"]

1. d4 {[%clk 0:03:00.9]} 1... Nf6 {[%clk 0:02:59.7]} 2. Nc3 {[%clk 0:02:59.2]}
2... g6 {[%clk 0:02:56.2]} 3. e4 {[%clk 0:02:58.9]} 3... d6 {[%clk 0:02:55.9]}
4. Be2 {[%clk 0:02:59.4]} 4... Bg7 {[%clk 0:02:56.1]} 5. Nf3 {[%clk 0:02:59.1]}
5... O-O {[%clk 0:02:56.2]} 6. O-O {[%clk 0:02:59.6]} 6... Nbd7 {[%clk
0:02:55.7]} 7. e5 {[%clk 0:02:45.6]} 7... Ne8 {[%clk 0:02:55.7]} 8. Bf4 {[%clk
0:02:41]} 8... c6 {[%clk 0:02:56.1]} 9. Re1 {[%clk 0:02:35.3]} 9... dxe5 {[%clk
0:02:54.6]} 10. dxe5 {[%clk 0:02:32.4]} 10... Nc7 {[%clk 0:02:54.7]} 11. Bc4
{[%clk 0:02:32.6]} 11... Nb6 {[%clk 0:02:48.1]} 12. Qxd8 {[%clk 0:02:29.2]}
12... Rxd8 {[%clk 0:02:47.7]} 13. Bb3 {[%clk 0:02:30.1]} 13... Ne6 {[%clk
0:02:42.9]} 14. Be3 {[%clk 0:02:27.8]} 14... Nc7 {[%clk 0:02:37.5]} 15. Bc5
{[%clk 0:02:25.4]} 15... Kf8 {[%clk 0:01:43.5]} 16. Ng5 {[%clk 0:02:15.9]} 16...
h6 {[%clk 0:01:38.6]} 17. Nxf7 {[%clk 0:01:55.2]} 17... Re8 {[%clk 0:01:32.4]}
18. Nd6 {[%clk 0:01:19.8]} 18... exd6 {[%clk 0:01:30.5]} 19. exd6 {[%clk
0:01:20.7]} 19... Nd7 {[%clk 0:01:21.5]} 20. Ba3 {[%clk 0:00:41.7]} 20... Nb5
{[%clk 0:00:24.7]} 21. Rxe8+ {[%clk 0:00:39.8]} 21... Kxe8 {[%clk 0:00:24.4]}
22. Re1+ {[%clk 0:00:39.9]} 22... Kd8 {[%clk 0:00:23.9]} 23. Nxb5 {[%clk
0:00:28.1]} 23... cxb5 {[%clk 0:00:24.8]} 24. Re7 {[%clk 0:00:24.9]} 24... Bf8
{[%clk 0:00:25]} 25. Rh7 {[%clk 0:00:14.4]} 25... a5 {[%clk 0:00:25.2]} 26. c3
{[%clk 0:00:14.5]} 26... b4 {[%clk 0:00:24]} 27. cxb4 {[%clk 0:00:14.4]} 27...
Bxd6 {[%clk 0:00:24.3]} 28. bxa5 {[%clk 0:00:11.3]} 28... Bxa3 {[%clk
0:00:25.2]} 29. bxa3 {[%clk 0:00:12.2]} 29... Rxa5 {[%clk 0:00:25.7]} 30. Rxh6
{[%clk 0:00:12.7]} 30... Nf8 {[%clk 0:00:19.7]} 31. h4 {[%clk 0:00:09.5]} 31...
Rxa3 {[%clk 0:00:17.3]} 32. h5 {[%clk 0:00:09.1]} 32... gxh5 {[%clk 0:00:17.7]}
33. Rxh5 {[%clk 0:00:10]} 33... Be6 {[%clk 0:00:17.6]} 34. Rb5 {[%clk
0:00:10.1]} 34... Kc7 {[%clk 0:00:15.1]} 35. f3 {[%clk 0:00:06]} 35... Bxb3
{[%clk 0:00:14.5]} 36. axb3 {[%clk 0:00:05.8]} 36... Ne6 {[%clk 0:00:14.8]} 37.
Rb4 {[%clk 0:00:05.2]} 37... Ra1+ {[%clk 0:00:09]} 38. Kf2 {[%clk 0:00:05.1]}
38... Ra2+ {[%clk 0:00:09.6]} 39. Kg3 {[%clk 0:00:05.6]} 39... Rb2 {[%clk
0:00:10.3]} 40. f4 {[%clk 0:00:04.3]} 40... Nc5 {[%clk 0:00:08.9]} 41. Rc4
{[%clk 0:00:04.6]} 41... Rxb3+ {[%clk 0:00:09.8]} 42. Kh4 {[%clk 0:00:05.2]}
42... Kd6 {[%clk 0:00:10.2]} 43. g4 {[%clk 0:00:04.9]} 43... b5 {[%clk
0:00:10.4]} 44. Rd4+ {[%clk 0:00:05]} 44... Kc6 {[%clk 0:00:10.6]} 45. f5 {[%clk
0:00:05.1]} 45... Rf3 {[%clk 0:00:10.7]} 46. Kg5 {[%clk 0:00:03.4]} 46... Nd7
{[%clk 0:00:09.9]} 47. Re4 {[%clk 0:00:02.7]} 47... Kd5 {[%clk 0:00:09]} 48. Re6
{[%clk 0:00:02.7]} 48... Ne5 {[%clk 0:00:08.8]} 49. Rb6 {[%clk 0:00:02]} 49...
Kc5 {[%clk 0:00:09.2]} 50. Rb7 {[%clk 0:00:02.1]} 50... Rf2 {[%clk 0:00:07.9]}
51. f6 {[%clk 0:00:02.6]} 51... Nxg4 {[%clk 0:00:04.5]} 52. Rb8 {[%clk 0:00:03]}
52... Nxf6 {[%clk 0:00:04]} 0-1

[Event "*** Titled Tuesday Blitz"]
[Site "Chess.com"]
[Date "2020.04.07"]
[Round "3"]
[White "JonahWillow"]
[Black "josiwales"]
[Result "1-0"]
[WhiteElo "2779"]
[BlackElo "2526"]
[TimeControl "180+1"]
[EndTime "13:30:52 PDT"]
[Termination "JonahWillow won on time"]

1. e4 {[%clk 0:03:00.9]} 1... c5 {[%clk 0:02:57]} 2. Nf3 {[%clk 0:03:00.9]} 2...
Nc6 {[%clk 0:02:55.8]} 3. d4 {[%clk 0:03:01.8]} 3... cxd4 {[%clk 0:02:56.7]} 4.
Nxd4 {[%clk 0:03:01.8]} 4... Nf6 {[%clk 0:02:57.6]} 5. Nc3 {[%clk 0:03:02]} 5...
e5 {[%clk 0:02:58.2]} 6. Ndb5 {[%clk 0:03:02.3]} 6... d6 {[%clk 0:02:58.8]} 7.
Bg5 {[%clk 0:03:03]} 7... a6 {[%clk 0:02:59.1]} 8. Na3 {[%clk 0:03:03.7]} 8...
b5 {[%clk 0:02:59.5]} 9. Nd5 {[%clk 0:03:04.4]} 9... Be7 {[%clk 0:03:00]} 10.
Bxf6 {[%clk 0:03:05.1]} 10... Bxf6 {[%clk 0:03:00.9]} 11. c4 {[%clk 0:03:06]}
11... Nd4 {[%clk 0:03:01.3]} 12. Nc2 {[%clk 0:03:06.7]} 12... Bg4 {[%clk
0:02:34]} 13. Qd2 {[%clk 0:02:44]} 13... Bg5 {[%clk 0:02:22.3]} 14. Nde3 {[%clk
0:02:40.1]} 14... Qb6 {[%clk 0:02:05.4]} 15. Qd3 {[%clk 0:01:49.7]} 15... Nxc2+
{[%clk 0:01:11.1]} 16. Nxc2 {[%clk 0:01:41.3]} 16... bxc4 {[%clk 0:01:11]} 17.
Qc3 {[%clk 0:01:37.9]} 17... Rb8 {[%clk 0:01:01.6]} 18. Bxc4 {[%clk 0:01:32.1]}
18... Qxb2 {[%clk 0:00:56.9]} 19. Qxb2 {[%clk 0:01:31.3]} 19... Rxb2 {[%clk
0:00:57.8]} 20. Bb3 {[%clk 0:01:19.4]} 20... Be6 {[%clk 0:00:38.3]} 21. Ba4+
{[%clk 0:01:03.1]} 21... Ke7 {[%clk 0:00:38.3]} 22. O-O {[%clk 0:01:02.1]} 22...
Rc8 {[%clk 0:00:36.8]} 23. Ne1 {[%clk 0:00:56.7]} 23... Bc4 {[%clk 0:00:34.2]}
24. Nf3 {[%clk 0:00:34.8]} 24... Bxf1 {[%clk 0:00:33.9]} 25. Kxf1 {[%clk
0:00:33.6]} 25... Bd2 {[%clk 0:00:21.8]} 26. Bb3 {[%clk 0:00:33.2]} 26... Ba5
{[%clk 0:00:19]} 27. Rd1 {[%clk 0:00:31.6]} 27... Bb6 {[%clk 0:00:18.7]} 28. Rd2
{[%clk 0:00:31.5]} 28... Rc1+ {[%clk 0:00:17.9]} 29. Ke2 {[%clk 0:00:30.4]}
29... Rbb1 {[%clk 0:00:18.4]} 30. Bc2 {[%clk 0:00:25.6]} 30... Rb4 {[%clk
0:00:16.2]} 31. a3 {[%clk 0:00:24.1]} 31... Rc4 {[%clk 0:00:14.8]} 32. Bd3
{[%clk 0:00:23.7]} 32... Rc5 {[%clk 0:00:14.1]} 33. a4 {[%clk 0:00:23.1]} 33...
Ba5 {[%clk 0:00:14.3]} 34. Rb2 {[%clk 0:00:20.5]} 34... Rc7 {[%clk 0:00:10.9]}
35. Bxa6 {[%clk 0:00:16.9]} 35... R1c2+ {[%clk 0:00:11.1]} 36. Rxc2 {[%clk
0:00:17.3]} 36... Rxc2+ {[%clk 0:00:12]} 37. Ke3 {[%clk 0:00:18.2]} 37... Bb6+
{[%clk 0:00:11]} 38. Kd3 {[%clk 0:00:17.4]} 38... Rxf2 {[%clk 0:00:11.2]} 39.
Nh4 {[%clk 0:00:16.9]} 39... g6 {[%clk 0:00:07.9]} 40. Kc4 {[%clk 0:00:17.5]}
40... Rf4 {[%clk 0:00:07.1]} 41. g3 {[%clk 0:00:16.2]} 41... Rxe4+ {[%clk
0:00:07.4]} 42. Kb5 {[%clk 0:00:15.8]} 42... Bg1 {[%clk 0:00:07.7]} 43. a5
{[%clk 0:00:16.3]} 43... Bxh2 {[%clk 0:00:07.6]} 44. Bb7 {[%clk 0:00:15.2]}
44... Re1 {[%clk 0:00:06.4]} 45. a6 {[%clk 0:00:15.7]} 45... Bxg3 {[%clk
0:00:05.9]} 46. a7 {[%clk 0:00:15.2]} 46... Ra1 {[%clk 0:00:03.8]} 47. Ba6
{[%clk 0:00:15.4]} 47... Rb1+ {[%clk 0:00:01.6]} 48. Kc4 {[%clk 0:00:15.7]}
48... Bxh4 {[%clk 0:00:01.6]} 49. a8=Q {[%clk 0:00:15.5]} 49... Rc1+ {[%clk
0:00:02.5]} 50. Kd3 {[%clk 0:00:15.5]} 50... Rc5 {[%clk 0:00:02.9]} 51. Qb7+
{[%clk 0:00:15.5]} 51... Kf6 {[%clk 0:00:03.4]} 52. Bc4 {[%clk 0:00:15.6]} 52...
Kg7 {[%clk 0:00:03.8]} 53. Qxf7+ {[%clk 0:00:15.6]} 53... Kh6 {[%clk 0:00:04.7]}
54. Qf8+ {[%clk 0:00:16.2]} 54... Kh5 {[%clk 0:00:04.8]} 55. Qxd6 {[%clk
0:00:17]} 55... Ra5 {[%clk 0:00:04.4]} 56. Qd7 {[%clk 0:00:16.1]} 56... Ra3+
{[%clk 0:00:04.3]} 57. Kc2 {[%clk 0:00:16.4]} 57... Bg5 {[%clk 0:00:03.7]} 58.
Be2+ {[%clk 0:00:16.6]} 58... Kh6 {[%clk 0:00:03]} 59. Qg4 {[%clk 0:00:15.6]}
59... Ra2+ {[%clk 0:00:03.3]} 60. Kb3 {[%clk 0:00:14.8]} 60... Rd2 {[%clk
0:00:01.8]} 61. Qh3+ {[%clk 0:00:15]} 61... Kg7 {[%clk 0:00:02.3]} 62. Bc4
{[%clk 0:00:15.6]} 62... Rd4 {[%clk 0:00:02.2]} 63. Qe6 {[%clk 0:00:15.6]} 63...
Bf6 {[%clk 0:00:02.3]} 64. Qf7+ {[%clk 0:00:15.7]} 64... Kh6 {[%clk 0:00:02.8]}
65. Qxf6 {[%clk 0:00:16.6]} 1-0

[Event "*** Titled Tuesday Blitz"]
[Site "Chess.com"]
[Date "2020.04.07"]
[Round "3"]
[White "sofaceindisguise"]
[Black "Zaven_ChessMood"]
[Result "1/2-1/2"]
[WhiteElo "2644"]
[BlackElo "2869"]
[TimeControl "180+1"]
[EndTime "13:30:54 PDT"]
[Termination "Game drawn - insufficient material"]

1. c4 {[%clk 0:02:56.7]} 1... e5 {[%clk 0:02:59.8]} 2. g3 {[%clk 0:02:56.5]}
2... Nc6 {[%clk 0:02:55.1]} 3. Bg2 {[%clk 0:02:56.6]} 3... Nf6 {[%clk
0:02:54.4]} 4. Nc3 {[%clk 0:02:54.5]} 4... Bb4 {[%clk 0:02:53.5]} 5. d3 {[%clk
0:02:52]} 5... Bxc3+ {[%clk 0:02:53.1]} 6. bxc3 {[%clk 0:02:51.9]} 6... d6
{[%clk 0:02:54]} 7. e4 {[%clk 0:02:51.8]} 7... O-O {[%clk 0:02:52.1]} 8. Nf3
{[%clk 0:02:51.3]} 8... Ne8 {[%clk 0:02:47.6]} 9. Nh4 {[%clk 0:02:49.3]} 9... a6
{[%clk 0:02:43.2]} 10. a4 {[%clk 0:02:48.7]} 10... Rb8 {[%clk 0:02:34.4]} 11. a5
{[%clk 0:02:43.4]} 11... h6 {[%clk 0:02:28.8]} 12. O-O {[%clk 0:02:42.1]} 12...
Bd7 {[%clk 0:02:25.4]} 13. Be3 {[%clk 0:02:38.1]} 13... Ne7 {[%clk 0:02:22.1]}
14. c5 {[%clk 0:02:12.1]} 14... Qc8 {[%clk 0:02:18.5]} 15. cxd6 {[%clk
0:02:05.7]} 15... cxd6 {[%clk 0:02:16.1]} 16. c4 {[%clk 0:02:05.5]} 16... Bh3
{[%clk 0:02:14.6]} 17. Rb1 {[%clk 0:01:58.7]} 17... Bxg2 {[%clk 0:02:13.9]} 18.
Kxg2 {[%clk 0:01:58.9]} 18... g5 {[%clk 0:02:08.9]} 19. Nf3 {[%clk 0:01:54.3]}
19... f5 {[%clk 0:02:08.3]} 20. exf5 {[%clk 0:01:54.5]} 20... Nxf5 {[%clk
0:02:06.1]} 21. Rb6 {[%clk 0:01:42.5]} 21... Nf6 {[%clk 0:02:02.2]} 22. Nd2
{[%clk 0:01:34.6]} 22... Nd7 {[%clk 0:01:59]} 23. Rb1 {[%clk 0:01:20.3]} 23...
Rf7 {[%clk 0:01:56.4]} 24. Ne4 {[%clk 0:01:17.7]} 24... Nf6 {[%clk 0:01:53.6]}
25. Nxf6+ {[%clk 0:01:14.4]} 25... Rxf6 {[%clk 0:01:53.4]} 26. Kg1 {[%clk
0:01:11.9]} 26... Qd7 {[%clk 0:01:49]} 27. Qg4 {[%clk 0:01:08.8]} 27... Rbf8
{[%clk 0:01:44.9]} 28. Qe4 {[%clk 0:01:07.1]} 28... R8f7 {[%clk 0:01:41.9]} 29.
Rb2 {[%clk 0:00:59.6]} 29... Nxe3 {[%clk 0:01:39.4]} 30. Qxe3 {[%clk 0:00:58.5]}
30... Qa4 {[%clk 0:01:37.2]} 31. Qb6 {[%clk 0:00:55.9]} 31... Qa3 {[%clk
0:01:34.4]} 32. Rb3 {[%clk 0:00:54.2]} 32... Qa2 {[%clk 0:01:32.7]} 33. Rb2
{[%clk 0:00:54.4]} 33... Qa3 {[%clk 0:01:30.6]} 34. Rb3 {[%clk 0:00:54.5]} 34...
Qa4 {[%clk 0:01:30.4]} 35. Rb2 {[%clk 0:00:43.4]} 35... Qd7 {[%clk 0:01:28]} 36.
Qe3 {[%clk 0:00:42]} 36... Rf3 {[%clk 0:01:18.9]} 37. Qe4 {[%clk 0:00:41.6]}
37... Kg7 {[%clk 0:01:11.3]} 38. Rfb1 {[%clk 0:00:40.7]} 38... Qc8 {[%clk
0:01:03.1]} 39. Rxb7 {[%clk 0:00:38.9]} 39... Rxf2 {[%clk 0:00:59.5]} 40. Rxf7+
{[%clk 0:00:37.5]} 40... Rxf7 {[%clk 0:01:00.4]} 41. Rf1 {[%clk 0:00:36.2]}
41... Qc5+ {[%clk 0:00:56.9]} 42. Kg2 {[%clk 0:00:35.8]} 42... Rxf1 {[%clk
0:00:56.4]} 43. Kxf1 {[%clk 0:00:36.7]} 43... Qxa5 {[%clk 0:00:57.2]} 44. Qb7+
{[%clk 0:00:37]} 44... Kf6 {[%clk 0:00:46.9]} 45. Qc8 {[%clk 0:00:37.1]} 45...
Qa1+ {[%clk 0:00:42.7]} 46. Ke2 {[%clk 0:00:36.8]} 46... Qb2+ {[%clk 0:00:41.8]}
47. Kf3 {[%clk 0:00:36.9]} 47... g4+ {[%clk 0:00:34]} 48. Qxg4 {[%clk
0:00:25.3]} 48... Qd2 {[%clk 0:00:30.9]} 49. Qh4+ {[%clk 0:00:21.8]} 49... Qg5
{[%clk 0:00:26.7]} 50. Qxg5+ {[%clk 0:00:17.9]} 50... hxg5 {[%clk 0:00:23.8]}
51. h3 {[%clk 0:00:14.2]} 51... g4+ {[%clk 0:00:19.7]} 52. hxg4 {[%clk
0:00:12.6]} 52... Kg5 {[%clk 0:00:20.6]} 53. Ke4 {[%clk 0:00:12.6]} 53... a5
{[%clk 0:00:16.2]} 54. d4 {[%clk 0:00:12.9]} 54... exd4 {[%clk 0:00:13.5]} 55.
Kxd4 {[%clk 0:00:13]} 55... Kxg4 {[%clk 0:00:12.9]} 56. c5 {[%clk 0:00:12.7]}
56... dxc5+ {[%clk 0:00:12.7]} 57. Kxc5 {[%clk 0:00:13.6]} 57... a4 {[%clk
0:00:13.6]} 58. Kb4 {[%clk 0:00:13.8]} 58... a3 {[%clk 0:00:14.5]} 59. Kxa3
{[%clk 0:00:13.8]} 59... Kxg3 {[%clk 0:00:15.4]} 1/2-1/2

[Event "*** Titled Tuesday Blitz"]
[Site "Chess.com"]
[Date "2020.04.07"]
[Round "3"]
[White "Trickov"]
[Black "x-3738459472"]
[Result "1/2-1/2"]
[WhiteElo "2242"]
[BlackElo "2524"]
[TimeControl "180+1"]
[EndTime "13:30:54 PDT"]
[Termination "Game drawn by repetition"]

1. d4 {[%clk 0:02:59]} 1... Nf6 {[%clk 0:02:58.3]} 2. Nf3 {[%clk 0:02:57.9]}
2... c5 {[%clk 0:02:58.2]} 3. c4 {[%clk 0:02:56.8]} 3... d6 {[%clk 0:02:53.4]}
4. Nc3 {[%clk 0:02:55.2]} 4... cxd4 {[%clk 0:02:46.1]} 5. Nxd4 {[%clk
0:02:53.3]} 5... Nc6 {[%clk 0:02:46]} 6. g3 {[%clk 0:02:52]} 6... h5 {[%clk
0:02:36.7]} 7. Bg5 {[%clk 0:02:49]} 7... Qa5 {[%clk 0:02:29.5]} 8. Nf3 {[%clk
0:02:42.9]} 8... Ne4 {[%clk 0:02:24.9]} 9. Bd2 {[%clk 0:02:40.4]} 9... Nxd2
{[%clk 0:02:21.9]} 10. Qxd2 {[%clk 0:02:39.7]} 10... g6 {[%clk 0:02:17.7]} 11.
Nd5 {[%clk 0:02:33.9]} 11... Qxd2+ {[%clk 0:02:15.3]} 12. Kxd2 {[%clk
0:02:32.1]} 12... Kd8 {[%clk 0:02:15.2]} 13. Rd1 {[%clk 0:02:26.2]} 13... Be6
{[%clk 0:02:11.7]} 14. Bg2 {[%clk 0:02:23.4]} 14... Rc8 {[%clk 0:02:10.4]} 15.
a3 {[%clk 0:02:12.5]} 15... Na5 {[%clk 0:02:00.5]} 16. Ne3 {[%clk 0:01:38.5]}
16... Nxc4+ {[%clk 0:01:54.9]} 17. Nxc4 {[%clk 0:01:36]} 17... Bxc4 {[%clk
0:01:55.8]} 18. Nd4 {[%clk 0:01:31.7]} 18... Bg7 {[%clk 0:01:51.9]} 19. Bxb7
{[%clk 0:01:21.6]} 19... Rc7 {[%clk 0:01:50.4]} 20. Nc6+ {[%clk 0:01:08.8]}
20... Kd7 {[%clk 0:01:48]} 21. Na5 {[%clk 0:01:06.4]} 21... Bxb2 {[%clk
0:01:30.3]} 22. Nxc4 {[%clk 0:00:34.2]} 22... Rxc4 {[%clk 0:01:29]} 23. Ba6
{[%clk 0:00:34.6]} 23... Rc5 {[%clk 0:01:24.8]} 24. a4 {[%clk 0:00:32.4]} 24...
Rb8 {[%clk 0:01:22.2]} 25. Rb1 {[%clk 0:00:30.7]} 25... Kd8 {[%clk 0:01:16.3]}
26. e3 {[%clk 0:00:26.4]} 26... Rb4 {[%clk 0:01:11.6]} 27. Bb5 {[%clk
0:00:20.3]} 27... Kc7 {[%clk 0:01:07.5]} 28. Rhd1 {[%clk 0:00:16.3]} 28... Kb6
{[%clk 0:01:07]} 29. Ke2 {[%clk 0:00:14.7]} 29... a6 {[%clk 0:00:45.9]} 30. Be8
{[%clk 0:00:12.4]} 30... Rf5 {[%clk 0:00:34.2]} 31. Rd2 {[%clk 0:00:12.5]} 31...
Bc3 {[%clk 0:00:33.6]} 32. Rxb4+ {[%clk 0:00:12.1]} 32... Bxb4 {[%clk
0:00:34.5]} 33. Rb2 {[%clk 0:00:12.5]} 33... a5 {[%clk 0:00:33.5]} 34. Rc2
{[%clk 0:00:12.8]} 34... g5 {[%clk 0:00:26]} 35. f4 {[%clk 0:00:12.5]} 35...
gxf4 {[%clk 0:00:26]} 36. gxf4 {[%clk 0:00:11.3]} 36... e5 {[%clk 0:00:26.2]}
37. Rc6+ {[%clk 0:00:08.8]} 37... Kb7 {[%clk 0:00:26.2]} 38. Rc4 {[%clk
0:00:09.2]} 38... Bc5 {[%clk 0:00:22.6]} 39. Bb5 {[%clk 0:00:07.6]} 39... Kb6
{[%clk 0:00:20.7]} 40. Kf3 {[%clk 0:00:07]} 40... d5 {[%clk 0:00:20.7]} 41. Rc2
{[%clk 0:00:06.9]} 41... exf4 {[%clk 0:00:20.8]} 42. exf4 {[%clk 0:00:06.7]}
42... Bd6 {[%clk 0:00:21.3]} 43. Rc6+ {[%clk 0:00:06.8]} 43... Kb7 {[%clk
0:00:20.5]} 44. Rxd6 {[%clk 0:00:07.4]} 44... Kc7 {[%clk 0:00:20.9]} 45. Rd7+
{[%clk 0:00:07.6]} 45... Kb6 {[%clk 0:00:21.5]} 46. Rd6+ {[%clk 0:00:08.1]}
46... Kc5 {[%clk 0:00:21.8]} 47. Rd7 {[%clk 0:00:05.7]} 47... Kd4 {[%clk
0:00:21.1]} 48. Rc7 {[%clk 0:00:05.6]} 48... Rf6 {[%clk 0:00:18.2]} 49. Rc1
{[%clk 0:00:05]} 49... h4 {[%clk 0:00:15.9]} 50. Rd1+ {[%clk 0:00:05.3]} 50...
Kc5 {[%clk 0:00:16.4]} 51. Rc1+ {[%clk 0:00:05.5]} 51... Kd4 {[%clk 0:00:16.8]}
52. Rd1+ {[%clk 0:00:05.6]} 52... Kc5 {[%clk 0:00:17.3]} 53. Rc1+ {[%clk
0:00:06.2]} 53... Kd4 {[%clk 0:00:10.6]} 1/2-1/2

[Event "*** Titled Tuesday Blitz"]
[Site "Chess.com"]
[Date "2020.04.07"]
[Round "3"]
[White "GodDMuhammad"]
[Black "praveenb2002"]
[Result "0-1"]
[WhiteElo "2320"]
[BlackElo "2594"]
[TimeControl "180+1"]
[EndTime "13:30:55 PDT"]
[Termination "praveenb2002 won by resignation"]

1. f4 {[%clk 0:03:00.9]} 1... d5 {[%clk 0:02:59.3]} 2. Nf3 {[%clk 0:02:56.7]}
2... Nf6 {[%clk 0:02:59.3]} 3. g3 {[%clk 0:02:57]} 3... g6 {[%clk 0:02:58.9]} 4.
d3 {[%clk 0:02:57.3]} 4... Bg7 {[%clk 0:02:58.9]} 5. Bg2 {[%clk 0:02:57.8]} 5...
O-O {[%clk 0:02:58.5]} 6. c3 {[%clk 0:02:58.3]} 6... c5 {[%clk 0:02:55.4]} 7.
Qc2 {[%clk 0:02:58.7]} 7... Nc6 {[%clk 0:02:52.1]} 8. e4 {[%clk 0:02:58.8]} 8...
dxe4 {[%clk 0:02:50.4]} 9. dxe4 {[%clk 0:02:59.7]} 9... e5 {[%clk 0:02:50.9]}
10. f5 {[%clk 0:02:58]} 10... gxf5 {[%clk 0:02:48.7]} 11. exf5 {[%clk
0:02:57.1]} 11... e4 {[%clk 0:02:49.2]} 12. Nh4 {[%clk 0:02:56.9]} 12... Ne5
{[%clk 0:02:32.3]} 13. O-O {[%clk 0:02:52.5]} 13... Nd3 {[%clk 0:02:30.2]} 14.
Bg5 {[%clk 0:02:08.3]} 14... c4 {[%clk 0:02:29.7]} 15. Nd2 {[%clk 0:02:05.4]}
15... Qb6+ {[%clk 0:02:27.4]} 16. Kh1 {[%clk 0:01:54.1]} 16... Nf2+ {[%clk
0:02:27.6]} 17. Rxf2 {[%clk 0:01:38.3]} 17... Qxf2 {[%clk 0:02:28.5]} 18. Qc1
{[%clk 0:00:47.1]} 18... e3 {[%clk 0:02:21.2]} 19. Nxc4 {[%clk 0:00:41.1]} 19...
e2 {[%clk 0:02:09.1]} 20. Be3 {[%clk 0:00:38.9]} 20... e1=Q+ {[%clk 0:02:04.7]}
21. Qxe1 {[%clk 0:00:38.8]} 21... Qxe1+ {[%clk 0:02:05.6]} 22. Rxe1 {[%clk
0:00:38.9]} 22... Re8 {[%clk 0:02:05.4]} 23. Rf1 {[%clk 0:00:28.2]} 23... Ne4
{[%clk 0:01:49.5]} 24. Bd4 {[%clk 0:00:18.8]} 24... Bxd4 {[%clk 0:01:38.9]} 25.
cxd4 {[%clk 0:00:19.7]} 25... Bd7 {[%clk 0:01:31.2]} 26. Ne5 {[%clk 0:00:16.1]}
26... Bc6 {[%clk 0:01:30.9]} 27. Nxc6 {[%clk 0:00:15.8]} 27... bxc6 {[%clk
0:01:30.7]} 28. Rf4 {[%clk 0:00:15]} 28... Nf6 {[%clk 0:01:24.6]} 29. Bxc6
{[%clk 0:00:14.7]} 29... Re1+ {[%clk 0:01:23.5]} 30. Kg2 {[%clk 0:00:14.6]}
30... Rc8 {[%clk 0:01:23.1]} 31. d5 {[%clk 0:00:14.5]} 31... Re2+ {[%clk
0:01:18.6]} 32. Rf2 {[%clk 0:00:13.6]} 32... Rxf2+ {[%clk 0:01:11.6]} 33. Kxf2
{[%clk 0:00:14.5]} 33... Rd8 {[%clk 0:01:12.2]} 34. Nf3 {[%clk 0:00:13]} 34...
Nxd5 {[%clk 0:01:12.2]} 35. Bxd5 {[%clk 0:00:13.9]} 35... Rxd5 {[%clk
0:01:11.8]} 36. g4 {[%clk 0:00:14.8]} 36... Rd1 {[%clk 0:01:01]} 37. h3 {[%clk
0:00:14.6]} 37... Rb1 {[%clk 0:01:01.1]} 38. b3 {[%clk 0:00:14.5]} 38... Rb2+
{[%clk 0:01:00.9]} 39. Kg3 {[%clk 0:00:14.9]} 39... Rxa2 {[%clk 0:01:00.8]} 40.
Kf4 {[%clk 0:00:15.7]} 40... f6 {[%clk 0:00:56.3]} 41. h4 {[%clk 0:00:15.7]}
41... Rb2 {[%clk 0:00:54.4]} 42. Nd4 {[%clk 0:00:15.8]} 42... Kf7 {[%clk
0:00:50.8]} 43. g5 {[%clk 0:00:16]} 43... Rd2 {[%clk 0:00:42.2]} 44. Ke3 {[%clk
0:00:15.5]} 44... Rh2 {[%clk 0:00:41.9]} 45. Nf3 {[%clk 0:00:15]} 45... Rh1
{[%clk 0:00:37.8]} 46. Kd3 {[%clk 0:00:12.9]} 46... Rf1 {[%clk 0:00:37.5]} 47.
Ke3 {[%clk 0:00:12.9]} 47... Rb1 {[%clk 0:00:33.6]} 48. Nd4 {[%clk 0:00:13]}
48... Rh1 {[%clk 0:00:32.9]} 49. Nf3 {[%clk 0:00:13.1]} 49... Rc1 {[%clk
0:00:29.3]} 50. Kd2 {[%clk 0:00:12.2]} 50... Rb1 {[%clk 0:00:27]} 51. Ke3 {[%clk
0:00:12.3]} 51... Rxb3+ {[%clk 0:00:26.5]} 52. Ke4 {[%clk 0:00:12.2]} 52... Rb4+
{[%clk 0:00:25.3]} 53. Kd5 {[%clk 0:00:11.4]} 53... Rb5+ {[%clk 0:00:23.7]} 54.
Ke4 {[%clk 0:00:11.4]} 54... a5 {[%clk 0:00:23.9]} 55. h5 {[%clk 0:00:11.7]}
55... Rb4+ {[%clk 0:00:21.6]} 56. Kd5 {[%clk 0:00:11.5]} 56... Rf4 {[%clk
0:00:19.3]} 57. g6+ {[%clk 0:00:11.3]} 57... Kg7 {[%clk 0:00:19.4]} 58. Nd4
{[%clk 0:00:11]} 58... Rf1 {[%clk 0:00:15.8]} 59. Ne6+ {[%clk 0:00:10.1]} 59...
Kg8 {[%clk 0:00:15.6]} 60. Nd4 {[%clk 0:00:09.3]} 60... a4 {[%clk 0:00:15.4]}
61. h6 {[%clk 0:00:09.4]} 61... a3 {[%clk 0:00:14.4]} 62. Ke6 {[%clk 0:00:08.8]}
62... a2 {[%clk 0:00:13.1]} 63. Nc2 {[%clk 0:00:07.9]} 63... Rc1 {[%clk
0:00:12.4]} 64. Kxf6 {[%clk 0:00:07.1]} 64... Rxc2 {[%clk 0:00:12.6]} 65. g7
{[%clk 0:00:06.4]} 65... Rc6+ {[%clk 0:00:12.7]} 66. Ke7 {[%clk 0:00:07.3]}
66... Rc7+ {[%clk 0:00:12.9]} 67. Ke6 {[%clk 0:00:07.6]} 67... Rf7 {[%clk
0:00:12.9]} 68. f6 {[%clk 0:00:08.5]} 68... a1=Q {[%clk 0:00:13.2]} 69. Kf5
{[%clk 0:00:09.3]} 69... Qxf6+ {[%clk 0:00:13.7]} 0-1